bitfinex-derivatives/quotes_ETHF0:USTF0_20250417
["timestamp","ask_amount","ask_price","bid_price","bid_amount"]
[1744886406328,9.14544076,1594.0,1593.9,1.25513]
[1744886406538,9.14544076,1594.0,1593.9,4.46293]
[1744886407241,9.14544076,1594.0,1593.9,3.2078]
[1744886407539,1.25521,1593.8,1593.7,7.21477]
[1744886407739,1.25521,1593.8,1593.7,7.20555313]
[1744886408041,7.52561,1593.8,1593.7,7.20555313]
[1744886408340,7.9859,1593.8,1593.7,7.20555313]
[1744886409733,9.24111,1593.8,1593.7,7.20555313]
[1744886410838,7.9859,1593.8,1593.7,7.20555313]
[1744886412843,9.24111,1593.8,1593.7,7.20555313]
[1744886413546,7.9859,1593.8,1593.7,7.20555313]
[1744886414241,9.24111,1593.8,1593.7,7.20555313]
[1744886419443,9.24111,1593.8,1593.7,3.99775313]
[1744886419640,9.24111,1593.8,1593.7,7.20555313]
[1744886421553,9.24111,1593.8,1593.7,3.99775313]
[1744886421753,7.9859,1593.8,1593.7,7.20555313]
[1744886429253,7.9859,1593.8,1593.7,3.99775313]
[1744886429450,7.9859,1593.8,1593.7,7.20555313]
[1744886430858,10.44981088,1594.0,1593.9,1.25513]
[1744886431058,16.71099401,1594.0,1593.9,4.46293]
[1744886431259,16.71099401,1594.0,1593.9,4.81143]
[1744886432966,10.44059401,1594.0,1593.9,4.81143]
[1744886433369,0.00940763,1594.1,1594.0,1.25505]
[1744886433573,6.27980763,1594.1,1594.0,2.23775]
[1744886438575,1.64460763,1594.1,1594.0,2.23775]
[1744886438777,7.91500763,1594.1,1594.0,2.23775]
[1744886442782,7.91500763,1594.1,1594.0,3.99375]
[1744886445375,9.16997763,1594.1,1594.0,2.23775]
[1744886445583,10.16707763,1594.1,1594.0,1.25505]
[1744886445982,1.25505,1594.0,1593.9,1.25506]
[1744886446184,10.17125,1594.0,1593.9,1.25506]
[1744886447072,13.9162,1594.0,1593.8,9.63031024]
[1744886447383,9.17563,1593.9,1593.8,9.62109337]
[1744886447776,14.17563,1593.9,1593.8,8.36594337]
[1744886447977,14.17563,1593.9,1593.8,6.76414337]
[1744886448180,18.24963,1593.9,1593.8,6.76414337]
[1744886448883,1.25521,1593.8,1593.7,1.25528]
[1744886449075,10.16031,1593.8,1593.7,1.25528]
[1744886450183,10.16031,1593.8,1593.5,4.46323]
[1744886450184,1.25537,1593.6,1593.5,4.46323]
[1744886450387,9.14604,1593.7,1593.6,1.25537]
[1744886451282,10.11064,1593.7,1593.6,1.25537]
[1744886453281,1.25537,1593.6,1593.5,4.46324]
[1744886453481,9.22767,1593.6,1593.5,4.46324]
[1744886455087,7.9723,1593.6,1593.5,4.46324]
[1744886455888,6.2704,1593.6,1593.5,4.46324]
[1744886456189,6.2704,1593.6,1593.5,10.24014]
[1744886456382,6.2704,1593.6,1593.5,6.16614]
[1744886456590,7.52577,1593.6,1593.5,6.16615]
[1744886456887,7.52577,1593.6,1593.5,4.46325]
[1744886457588,7.3092,1593.6,1593.5,4.46325]
[1744886457783,6.2704,1593.6,1593.5,7.12105]
[1744886458493,7.52577,1593.6,1593.5,7.12105]
[1744886458686,9.0093,1593.6,1593.5,6.06175]
[1744886460387,10.26467,1593.6,1593.5,6.06175]
[1744886460587,10.26467,1593.6,1593.5,3.2078]
[1744886462187,10.26467,1593.6,1593.5,4.46325]
[1744886463189,9.0093,1593.6,1593.5,4.46325]
[1744886466696,10.26467,1593.6,1593.5,4.46325]
[1744886466900,9.0093,1593.6,1593.5,4.46325]
[1744886469501,10.26467,1593.6,1593.5,4.46325]
[1744886470487,10.26467,1593.6,1593.5,3.2078]
[1744886470688,10.26467,1593.6,1593.5,4.46325]
[1744886473196,10.26467,1593.6,1593.4,4.47265763]
[1744886473197,1.25545,1593.5,1593.4,4.47265763]
[1744886473398,10.21305,1593.5,1593.4,4.47265763]
[1744886473996,10.21305,1593.5,1593.4,0.00940763]
[1744886475704,1.25568,1593.2,1593.1,4.04676]
[1744886476100,11.21718,1593.2,1593.1,4.04676]
[1744886481117,6.2704,1593.2,1593.1,4.04676]
[1744886481714,7.52608,1593.2,1593.1,4.04676]
[1744886481915,6.2704,1593.2,1593.1,4.04676]
[1744886482314,7.52608,1593.2,1593.1,4.04676]
[1744886482508,9.27658,1593.2,1593.1,4.04676]
[1744886482708,10.32758,1593.2,1593.1,4.04676]
[1744886483517,1.25576,1593.1,1593.0,8.54697763]
[1744886483708,1.25576,1593.1,1593.0,11.16977763]
[1744886484818,5.07704763,1593.2,1593.1,1.25576]
[1744886485018,11.34744763,1593.2,1593.1,4.03756]
[1744886485223,10.09170763,1593.2,1593.1,4.03756]
[1744886485614,11.34738763,1593.2,1593.1,1.25576]
[1744886485915,1.25576,1593.1,1593.0,3.21720763]
[1744886486122,9.13366,1593.1,1593.0,4.47304763]
[1744886488822,7.8779,1593.1,1593.0,4.47304763]
[1744886489119,7.8779,1593.1,1593.0,6.13914763]
[1744886490223,9.13366,1593.1,1593.0,6.13914763]
[1744886490821,6.2704,1593.1,1593.0,6.13914763]
[1744886491121,0.00940763,1593.2,1593.1,1.25576]
[1744886491322,6.27980763,1593.2,1593.1,3.96946]
[1744886497431,6.27980763,1593.2,1593.1,7.17726]
[1744886498428,7.53548763,1593.2,1593.1,4.46356]
[1744886498636,6.27980763,1593.2,1593.1,4.46356]
[1744886498821,7.99910763,1593.2,1593.1,4.46356]
[1744886500135,9.25478763,1593.2,1593.1,4.46356]
[1744886500529,9.25478763,1593.2,1593.1,3.2078]
[1744886502233,9.25478763,1593.2,1593.1,4.46356]
[1744886507848,9.25478763,1593.2,1593.1,3.2078]
[1744886508736,1.25576,1593.1,1593.0,0.00940763]
[1744886508940,9.20806,1593.1,1593.0,0.00940763]
[1744886510845,9.20806,1593.1,1593.0,3.21720763]
[1744886512646,10.17416,1593.1,1593.0,3.21720763]
[1744886513148,10.17416,1593.1,1593.0,4.47304763]
[1744886519856,10.17416,1593.1,1593.0,3.21720763]
[1744886520743,20.23816,1593.1,1593.0,0.00940763]
[1744886520948,1.25608,1592.7,1592.6,1.25613]
[1744886521359,11.14768,1592.7,1592.6,1.25613]
[1744886523356,1.25615,1592.6,1592.5,6.09827]
[1744886523556,9.18585,1592.6,1592.5,6.09827]
[1744886528656,7.9297,1592.6,1592.5,6.09827]
[1744886529054,9.18585,1592.6,1592.5,6.09827]
[1744886531463,9.18585,1592.6,1592.5,4.46397]
[1744886531866,9.18585,1592.6,1592.5,6.05517]
[1744886533766,7.9297,1592.6,1592.5,6.05517]
[1744886536365,9.18585,1592.6,1592.5,6.05517]
[1744886538966,7.9297,1592.6,1592.5,6.05517]
[1744886539167,6.2704,1592.6,1592.5,7.09177]
[1744886541469,7.52655,1592.6,1592.5,7.09177]
[1744886543371,9.15225,1592.6,1592.5,7.09177]
[1744886544570,9.15225,1592.6,1592.5,6.05517]
[1744886550267,9.15225,1592.6,1592.5,3.2078]
[1744886550469,1.2563,1592.5,1592.3,3.2078]
[1744886550673,0.975,1592.4,1592.3,3.2078]
[1744886550875,8.50174,1592.4,1592.3,1.25636]
[1744886551073,10.25034,1592.4,1592.3,1.25636]
[1744886552071,1.25647,1592.2,1592.1,4.46434]
[1744886552459,7.52687,1592.2,1592.1,4.46434]
[1744886552659,9.27547,1592.2,1592.1,4.46434]
[1744886553066,9.27547,1592.2,1592.1,3.2078]
[1744886553263,1.25655,1592.1,1592.0,1.25659]
[1744886553462,11.26585,1592.1,1592.0,1.25659]
[1744886553771,1.25663,1592.0,1591.9,0.9984]
[1744886553977,9.27563,1592.0,1591.9,0.9984]
[1744886554268,9.27563,1592.0,1591.9,2.25511]
[1744886555168,9.27563,1592.0,1591.9,0.9984]
[1744886555473,1.25671,1591.9,1591.8,4.8198]
[1744886555662,10.22461,1591.9,1591.8,25.76774275]
[1744886556375,10.22461,1591.9,1591.8,27.02453275]
[1744886557873,10.22461,1591.9,1591.8,25.41253275]
[1744886561777,10.22461,1591.9,1591.8,22.20473275]
[1744886561976,8.9679,1591.9,1591.8,22.20473275]
[1744886562277,10.22461,1591.9,1591.8,22.20473275]
[1744886563179,10.22461,1591.9,1591.8,1.25679]
[1744886563479,1.25679,1591.8,1591.7,6.111]
[1744886563679,9.17819,1591.8,1591.7,6.111]
[1744886567084,6.2704,1591.8,1591.7,6.111]
[1744886570786,3.19625,1592.1,1592.0,1.25663]
[1744886570985,6.2704,1592.1,1592.0,1.25663]
[1744886571184,6.2704,1592.1,1592.0,4.91713]
[1744886574194,6.2704,1592.1,1592.0,3.90813]
[1744886574497,9.25945,1592.1,1592.0,3.90813]
[1744886576190,8.0029,1592.1,1592.0,3.90813]
[1744886577290,9.25945,1592.1,1592.0,3.90813]
[1744886577498,8.0029,1592.1,1592.0,3.90813]
[1744886579594,6.2704,1592.1,1592.0,3.90813]
[1744886579800,0.00940763,1592.3,1592.2,1.25647]
[1744886579986,0.00940763,1592.3,1592.2,5.41977]
[1744886579987,6.27980763,1592.3,1592.2,5.41977]
[1744886580296,6.27980763,1592.3,1592.2,7.01067]
[1744886587898,6.27980763,1592.3,1592.2,6.05517]
[1744886588098,7.28940763,1592.3,1592.2,1.25647]
[1744886588494,8.92950763,1592.3,1592.2,1.25647]
[1744886594398,8.92950763,1592.3,1592.2,4.46427]
[1744886595002,8.92950763,1592.3,1592.2,1.25647]
[1744886609731,10.18589763,1592.3,1592.2,1.25647]
[1744886611121,1.25647,1592.2,1592.1,3.2078]
[1744886611320,1.25663,1592.0,1591.9,3.2078]
[1744886611724,9.14453,1592.0,1591.9,3.2078]
[1744886612121,9.14453,1592.0,1591.9,1.25671]
[1744886612723,7.8879,1592.0,1591.9,1.25671]
[1744886613427,6.2704,1592.0,1591.9,4.46451]
[1744886613830,6.2704,1592.0,1591.9,6.19481]
[1744886615429,5.18176279,1592.2,1592.1,1.25655]
[1744886615630,7.86056279,1592.2,1592.1,1.25655]
[1744886615929,14.13096279,1592.2,1592.1,2.90745]
[1744886617129,10.44256279,1592.2,1592.1,6.11525]
[1744886617331,4.17216279,1592.2,1592.1,7.15975]
[1744886617637,10.44256279,1592.2,1592.1,7.15975]
[1744886618133,6.2704,1592.2,1592.1,7.15975]
[1744886618629,0.00940763,1592.3,1592.2,1.25647]
[1744886618830,0.00940763,1592.3,1592.2,2.92517]
[1744886619031,6.27980763,1592.3,1592.2,2.92517]
[1744886626639,7.99180763,1592.3,1592.2,2.92517]
[1744886626941,6.27980763,1592.3,1592.2,2.92517]
[1744886627838,4.17216279,1592.6,1592.5,1.25623]
[1744886628036,10.44256279,1592.6,1592.5,1.25623]
[1744886628237,10.44256279,1592.6,1592.5,2.87463]
[1744886628843,12.06846279,1592.6,1592.5,2.87463]
[1744886630744,7.8963,1592.6,1592.5,2.87463]
[1744886639854,7.8963,1592.6,1592.5,4.46403]
[1744886640161,9.15245,1592.6,1592.5,4.46403]
[1744886640849,9.15245,1592.6,1592.2,1.25641]
[1744886640850,1.25639,1592.3,1592.2,1.25641]
[1744886641051,1.25647,1592.2,1592.1,9.64328436]
[1744886641247,2.86967,1592.2,1592.1,9.64328436]
[1744886641446,7.8836,1592.2,1592.1,9.64328436]
[1744886642250,9.14007,1592.2,1592.1,9.64328436]
[1744886643251,9.14007,1592.2,1592.1,8.38678436]
[1744886643452,9.14007,1592.2,1592.1,9.64333436]
[1744886643959,7.8836,1592.2,1592.1,9.64333436]
[1744886644258,9.14007,1592.2,1592.1,9.64333436]
[1744886645656,9.14007,1592.2,1592.1,1.26595763]
[1744886646752,9.14007,1592.2,1592.1,0.00940763]
[1744886647154,9.14007,1592.2,1592.1,1.26595763]
[1744886651265,9.14007,1592.2,1592.1,0.00940763]
[1744886660178,1.25679,1591.9,1591.8,1.25672]
[1744886660682,7.52719,1591.9,1591.8,1.25672]
[1744886661585,7.52719,1591.9,1591.8,2.92492]
[1744886662487,6.2704,1591.9,1591.8,2.92492]
[1744886665683,1.25654,1592.2,1592.1,1.25655]
[1744886666079,7.52694,1592.2,1592.1,2.94355]
[1744886666781,7.52687,1592.2,1592.1,2.94355]
[1744886667584,6.2704,1592.2,1592.1,2.94355]
[1744886668386,7.52687,1592.2,1592.1,1.687]
[1744886668587,1.25655,1592.1,1592.0,1.25662]
[1744886668889,7.52695,1592.1,1592.0,2.90712]
[1744886669089,9.23515,1592.1,1592.0,2.90712]
[1744886670378,7.9786,1592.1,1592.0,2.90712]
[1744886671287,6.2704,1592.1,1592.0,2.90712]
[1744886673378,1.7531,1592.3,1592.2,1.25647]
[1744886673580,3.00949,1592.3,1592.2,1.25647]
[1744886673782,9.27989,1592.3,1592.2,2.94857]
[1744886674182,9.27989,1592.3,1592.2,3.95637]
[1744886676685,9.27989,1592.3,1592.2,1.25647]
[1744886679188,9.27989,1592.3,1592.2,2.96197]
[1744886681097,8.0235,1592.3,1592.2,2.96197]
[1744886681288,9.27989,1592.3,1592.2,2.96197]
[1744886681997,8.0235,1592.3,1592.2,2.96197]
[1744886682197,9.27989,1592.3,1592.2,2.96197]
[1744886684000,8.0235,1592.3,1592.2,2.96197]
[1744886684200,9.27989,1592.3,1592.2,2.96197]
[1744886685199,8.0235,1592.3,1592.2,2.96197]
[1744886685397,9.27989,1592.3,1592.2,2.96197]
[1744886687199,8.0235,1592.3,1592.2,2.96197]
[1744886689397,9.27989,1592.3,1592.2,2.96197]
[1744886689801,8.0235,1592.3,1592.2,2.96197]
[1744886691894,6.2704,1592.3,1592.2,2.96197]
[1744886692100,1.9606,1592.4,1592.3,1.25639]
[1744886692101,0.9491,1592.4,1592.3,1.25639]
[1744886692294,6.2704,1592.4,1592.3,6.13969]
[1744886692495,6.2704,1592.4,1592.3,6.93589]
[1744886694298,7.9367,1592.4,1592.3,6.93589]
[1744886694501,8.7713,1592.4,1592.3,6.93589]
[1744886695000,6.2704,1592.4,1592.3,6.93589]
[1744886695603,0.00940763,1592.7,1592.6,1.25615]
[1744886695804,8.74390763,1592.7,1592.6,1.25615]
[1744886696007,8.74390763,1592.7,1592.6,2.86395]
[1744886696197,6.27980763,1592.7,1592.6,2.86395]
[1744886696695,6.27980763,1592.7,1592.6,1.25615]
[1744886696696,8.74390763,1592.7,1592.6,1.25615]
[1744886697099,9.99998763,1592.7,1592.6,1.25615]
[1744886697494,8.74390763,1592.7,1592.6,1.25615]
[1744886699199,8.74390763,1592.7,1592.6,2.93895]
[1744886700700,7.90930763,1592.7,1592.6,2.93895]
[1744886700899,7.90930763,1592.7,1592.6,1.25615]
[1744886705013,9.16538763,1592.7,1592.6,1.25615]
[1744886705609,7.90930763,1592.7,1592.6,1.25615]
[1744886706701,9.16538763,1592.7,1592.6,1.25615]
[1744886707105,7.90930763,1592.7,1592.6,1.25615]
[1744886712712,9.16538763,1592.7,1592.6,1.25615]
[1744886713013,7.90930763,1592.7,1592.6,1.25615]
[1744886713414,9.16538763,1592.7,1592.6,1.25615]
[1744886713608,1.25615,1592.6,1592.5,4.46397]
[1744886713814,9.94205,1592.6,1592.5,1.25617]
[1744886714511,8.6859,1592.6,1592.5,1.25617]
[1744886716923,8.6859,1592.6,1592.5,4.46397]
[1744886717121,6.2704,1592.6,1592.5,6.15097]
[1744886723828,7.9917,1592.6,1592.5,6.15097]
[1744886733935,1.7213,1592.6,1592.5,6.15097]
[1744886734126,7.9917,1592.6,1592.5,6.15097]
[1744886735133,9.24785,1592.6,1592.5,1.25617]
[1744886736234,7.9917,1592.6,1592.5,1.25617]
[1744886737236,7.9917,1592.6,1592.5,2.88457]
[1744886738439,7.9917,1592.6,1592.5,6.09237]
[1744886738734,7.9917,1592.6,1592.5,4.46397]
[1744886738935,9.24785,1592.6,1592.5,4.46397]
[1744886739437,7.9917,1592.6,1592.5,4.46397]
[1744886741339,9.24785,1592.6,1592.5,4.46397]
[1744886743041,7.9917,1592.6,1592.5,4.46397]
[1744886743640,9.24785,1592.6,1592.5,4.46397]
[1744886746347,9.24785,1592.6,1592.5,1.25617]
[1744886748343,1.25623,1592.5,1592.4,1.25631]
[1744886748540,1.25631,1592.4,1592.3,8.37737673]
[1744886748736,7.52671,1592.4,1592.3,8.37737673]
[1744886749039,14.21311,1592.4,1592.3,8.37737673]
[1744886750347,1.25639,1592.3,1592.2,8.37737673]
[1744886750647,10.10369,1592.3,1592.2,8.37737673]
[1744886754243,10.10369,1592.3,1592.2,9.63384673]
[1744886754946,10.10369,1592.3,1592.2,1.25647]
[1744886755548,1.25647,1592.2,1592.1,2.89759]
[1744886755750,9.16177,1592.2,1592.1,2.89759]
[1744886760861,1.25655,1592.1,1592.0,3.2078]
[1744886761155,1.25671,1591.9,1591.8,2.89284]
[1744886761566,7.52711,1591.9,1591.8,2.89284]
[1744886761762,7.9419,1591.9,1591.8,6.10064]
[1744886763069,9.19861,1591.9,1591.8,6.10064]
[1744886763369,7.9419,1591.9,1591.8,6.10064]
[1744886770773,9.19861,1591.9,1591.8,6.10064]
[1744886772663,9.19861,1591.9,1591.8,4.46454]
[1744886772869,9.19861,1591.9,1591.8,4.46459]
[1744886773073,1.25685,1591.8,1591.7,1.2568]
[1744886773274,10.05655,1591.8,1591.7,1.2568]
[1744886773480,1.25694,1591.7,1591.5,3.14256]
[1744886773667,9.27074,1591.7,1591.6,1.25694]
[1744886774775,8.0138,1591.7,1591.6,1.25694]
[1744886774979,6.2704,1591.7,1591.6,4.46474]
[1744886775276,6.2704,1591.7,1591.6,7.84544]
[1744886776575,6.2704,1591.7,1591.6,7.02454]
[1744886776872,7.8585,1591.7,1591.6,7.02454]
[1744886777777,9.11537,1591.7,1591.6,7.02454]
[1744886779080,7.8585,1591.7,1591.6,7.02454]
[1744886780076,9.11537,1591.7,1591.6,7.02454]
[1744886780679,9.11537,1591.7,1591.6,3.2078]
[1744886781785,9.11537,1591.7,1591.6,4.46474]
[1744886782378,7.8585,1591.7,1591.6,4.46474]
[1744886782779,6.2704,1591.7,1591.6,6.10334]
[1744886783073,6.2704,1591.7,1591.6,6.92744]
[1744886783278,0.00940763,1591.8,1591.7,1.25687]
[1744886783475,6.27980763,1591.8,1591.7,3.69017]
[1744886784782,0.00940763,1591.8,1591.7,3.69017]
[1744886784983,0.00940763,1591.8,1591.7,7.75617]
[1744886785386,1.6353,1592.1,1592.0,1.25663]
[1744886785580,4.17216279,1592.2,1592.1,1.25655]
[1744886785780,5.76896279,1592.2,1592.1,2.95005]
[1744886785981,13.29583279,1592.2,1592.1,2.95005]
[1744886786588,9.12367,1592.2,1592.1,2.95005]
[1744886786787,7.8672,1592.2,1592.1,2.95005]
[1744886787891,6.2704,1592.2,1592.1,2.95005]
[1744886788492,0.00940763,1592.3,1592.2,1.25647]
[1744886788787,0.00940763,1592.3,1592.2,6.15157]
[1744886788989,0.00940763,1592.3,1592.2,11.15157]
[1744886789378,7.63e-06,1592.3,1592.2,11.15157]
[1744886790181,7.63e-06,1592.3,1592.2,17.00757]
[1744886790382,6.64136279,1592.8,1592.7,1.25608]
[1744886790788,12.91176279,1592.8,1592.7,1.25608]
[1744886790990,12.91176279,1592.8,1592.7,2.94338]
[1744886794087,8.7396,1592.8,1592.7,2.94338]
[1744886795388,8.7396,1592.8,1592.7,1.25608]
[1744886796981,8.7396,1592.8,1592.7,2.99738]
[1744886798589,2.4692,1592.8,1592.7,2.99738]
[1744886798793,8.7396,1592.8,1592.7,2.99738]
[1744886800391,8.7396,1592.8,1592.7,1.25608]
[1744886802885,8.7396,1592.8,1592.7,4.46388]
[1744886803888,8.7396,1592.8,1592.7,6.14708]
[1744886805597,9.9956,1592.8,1592.7,6.14708]
[1744886806597,8.7396,1592.8,1592.7,6.14708]
[1744886808691,6.2704,1592.8,1592.7,6.14708]
[1744886810105,0.00940763,1592.9,1592.8,1.256]
[1744886810400,0.00940763,1592.9,1592.8,7.7784]
[1744886814603,0.00940763,1592.9,1592.8,10.9862]
[1744886821702,0.00940763,1592.9,1592.8,10.1615]
[1744886821906,7.53572763,1592.9,1592.8,3.2078]
[1744886822096,6.27980763,1592.9,1592.8,4.4638]
[1744886822404,8.40832763,1592.9,1592.8,4.4638]
[1744886822602,15.16112763,1592.9,1592.8,4.4638]
[1744886823004,13.90520763,1592.9,1592.8,4.4638]
[1744886823702,15.16112763,1592.9,1592.8,4.4638]
[1744886824393,10.16112763,1592.9,1592.8,4.4638]
[1744886825309,10.16112763,1592.9,1592.8,1.256]
[1744886825607,8.90520763,1592.9,1592.8,1.256]
[1744886826103,10.16112763,1592.9,1592.8,1.256]
[1744886828208,8.90520763,1592.9,1592.7,4.46381]
[1744886828407,8.7591,1592.8,1592.7,1.25608]
[1744886828597,10.01513,1592.8,1592.7,1.25608]
[1744886829702,1.25608,1592.7,1592.6,1.26549763]
[1744886829904,9.20698,1592.7,1592.6,1.26549763]
[1744886830709,7.9509,1592.7,1592.6,1.26549763]
[1744886831009,9.20698,1592.7,1592.6,1.26549763]
[1744886831212,7.9509,1592.7,1592.6,1.26549763]
[1744886841621,7.9509,1592.7,1592.6,4.47329763]
[1744886843516,7.9509,1592.7,1592.6,6.15279763]
[1744886844922,0.8082,1592.8,1592.7,1.25608]
[1744886845118,2.50220763,1592.9,1592.8,1.256]
[1744886845324,0.00940763,1592.9,1592.8,9.3748]
[1744886845628,0.00940763,1592.9,1592.8,16.0543]
[1744886846422,0.00940763,1592.9,1592.8,11.0543]
[1744886846623,4.17216279,1593.0,1592.9,1.25592]
[1744886846820,6.25824419,1593.1,1592.9,13.3471]
[1744886847019,6.25824419,1593.1,1593.0,4.46364]
[1744886847221,6.25824419,1593.1,1593.0,6.11294]
[1744886847421,6.25824419,1593.1,1593.0,11.11294]
[1744886847819,6.25824419,1593.1,1593.0,6.11294]
[1744886848026,12.52864419,1593.1,1593.0,6.11294]
[1744886848635,15.09034419,1593.1,1593.0,6.11294]
[1744886848928,8.8321,1593.1,1593.0,6.11294]
[1744886850020,6.2704,1593.1,1593.0,6.11294]
[1744886855439,7.9299,1593.1,1593.0,6.11294]
[1744886856132,9.18566,1593.1,1593.0,3.2078]
[1744886856333,1.25584,1593.0,1592.8,3.2078]
[1744886856541,9.13489,1593.0,1592.8,8.52373]
[1744886856744,6.2704,1592.9,1592.8,8.52373]
[1744886857036,7.879,1592.9,1592.8,8.52373]
[1744886857238,7.879,1592.9,1592.8,5.31593]
[1744886857631,7.879,1592.9,1592.8,8.52373]
[1744886859935,9.13492,1592.9,1592.8,4.06]
[1744886860341,1.256,1592.8,1592.7,20.94344183]
[1744886860541,9.2134,1592.8,1592.7,1.25601]
[1744886860745,7.9574,1592.8,1592.7,1.25601]
[1744886861041,9.2134,1592.8,1592.7,1.25601]
[1744886861241,7.9574,1592.8,1592.7,1.25601]
[1744886861744,7.9574,1592.8,1592.7,3.84271]
[1744886862042,5.99940763,1593.2,1593.1,1.25576]
[1744886862234,0.00940763,1593.2,1593.1,1.25576]
[1744886862430,0.00940763,1593.2,1593.1,4.46356]
[1744886863442,0.00940763,1593.2,1593.1,6.17196]
[1744886864439,0.00940763,1593.2,1593.1,10.23296]
[1744886865943,0.00940763,1593.2,1593.1,8.52456]
[1744886866438,1.73410763,1593.2,1593.1,8.52456]
[1744886869143,2.54680763,1593.2,1593.1,8.52456]
[1744886872647,2.54680763,1593.2,1593.1,10.19886]
[1744886875750,1.73410763,1593.2,1593.1,10.19886]
[1744886876550,0.00940763,1593.2,1593.1,10.19886]
[1744886881460,1.62370763,1593.2,1593.1,8.52456]
[1744886881661,6.62370763,1593.2,1593.0,1.25581]
[1744886881956,2.13586,1593.1,1593.0,1.25581]
[1744886882157,3.75016,1593.1,1593.0,1.25581]
[1744886882356,2.4944,1593.1,1593.0,1.25581]
[1744886885160,0.00940763,1593.2,1593.1,1.25576]
[1744886885363,0.00940763,1593.2,1593.1,4.46356]
[1744886885661,0.00940763,1593.2,1593.1,10.15796]
[1744886889157,0.00940763,1593.2,1593.1,6.09896]
[1744886889357,2.11668763,1593.2,1593.1,1.25576]
[1744886889559,3.86108763,1593.2,1593.1,1.25576]
[1744886890460,1.25576,1593.1,1593.0,5.31477]
[1744886890660,3.80816,1593.1,1592.9,4.46366]
[1744886891062,1.7444,1593.0,1592.9,4.46366]
[1744886896373,3.00024,1593.0,1592.9,4.46366]
[1744886896856,1.7444,1593.0,1592.9,4.46366]
[1744886898865,3.00024,1593.0,1592.9,4.46366]
[1744886900467,1.7444,1593.0,1592.9,4.46366]
[1744886900669,1.7444,1593.0,1592.9,6.15946]
[1744886900870,1.7444,1593.0,1592.9,6.99636]
[1744886901367,3.00024,1593.0,1592.9,6.99636]
[1744886904171,3.00024,1593.0,1592.9,3.78856]
[1744886904871,1.7444,1593.0,1592.9,3.78856]
[1744886908276,1.25584,1593.0,1592.9,2.95165]
[1744886908476,3.79133,1593.1,1593.0,1.25584]
[1744886908675,2.5355,1593.1,1593.0,1.25584]
[1744886908874,3.79126,1593.1,1593.0,6.22684]
[1744886909177,2.5355,1593.1,1593.0,6.22684]
[1744886910276,3.79126,1593.1,1593.0,6.22684]
[1744886910679,2.5355,1593.1,1593.0,6.22684]
[1744886910879,2.5355,1593.1,1593.0,7.03084]
[1744886913580,0.86100763,1593.2,1593.1,1.25576]
[1744886913775,0.00940763,1593.2,1593.1,2.85716]
[1744886916781,1.72150763,1593.2,1593.1,2.85716]
[1744886916980,2.97718763,1593.2,1593.1,1.25576]
[1744886917279,1.72150763,1593.2,1593.1,1.25576]
[1744886918891,2.97718763,1593.2,1593.1,1.25576]
[1744886919188,1.25576,1593.1,1593.0,1.25583]
[1744886919383,4.70136,1593.1,1593.0,1.25583]
[1744886919984,1.25584,1593.0,1592.9,9.63322673]
[1744886920284,2.85584,1593.0,1592.9,9.63322673]
[1744886921087,2.85584,1593.0,1592.9,1.25585]
[1744886922778,1.25596,1592.9,1592.8,1.25592]
[1744886922975,2.84406,1592.9,1592.8,1.25592]
[1744886924086,2.84406,1592.9,1592.7,1.25603]
[1744886924285,4.5243,1592.8,1592.7,1.25603]
[1744886928686,1.25608,1592.7,1592.6,6.06670763]
[1744886928888,2.89998,1592.7,1592.6,6.06670763]
[1744886929981,1.6439,1592.7,1592.6,6.06670763]
[1744886930289,2.89998,1592.7,1592.6,6.06670763]
[1744886937689,5.99,1593.0,1592.9,1.25592]
[1744886938088,5.99,1593.0,1592.9,3.81922]
[1744886938590,9.55044419,1593.1,1593.0,1.25584]
[1744886938898,9.55044419,1593.1,1593.0,3.01314]
[1744886939198,10.80620419,1593.1,1593.0,3.01314]
[1744886939391,9.55044419,1593.1,1593.0,3.01314]
[1744886939896,10.80620419,1593.1,1593.0,3.01314]
[1744886940598,12.68986419,1593.1,1592.8,3.2078]
[1744886940901,1.657,1593.0,1592.9,1.25591]
[1744886941405,1.657,1593.0,1592.6,12.85066436]
[1744886941406,1.25602,1592.8,1592.6,12.85066436]
[1744886941592,2.4937,1592.7,1592.6,12.85073436]
[1744886941798,2.4937,1592.7,1592.6,14.51303436]
[1744886942099,1.6572,1592.7,1592.6,14.51303436]
[1744886942694,1.25598,1592.9,1592.8,1.256]
[1744886942996,2.91318,1592.9,1592.8,1.256]
[1744886949305,1.256,1592.8,1592.7,2.9183]
[1744886949504,3.672,1592.8,1592.7,1.256]
[1744886949704,1.25608,1592.7,1592.6,6.11922763]
[1744886949905,3.72208,1592.7,1592.6,1.26552763]
[1744886950106,3.72208,1592.7,1592.6,4.47332763]
[1744886950405,3.72208,1592.7,1592.6,6.13402763]
[1744886954506,3.72208,1592.7,1592.6,4.47332763]
[1744886963510,3.72208,1592.7,1592.6,6.17232763]
[1744886963713,3.72208,1592.7,1592.6,0.00940763]
[1744886964019,7.77908,1592.7,1592.6,0.00940763]
[1744886964315,29.27908,1592.7,1592.6,0.00940763]
[1744886964508,24.27908,1592.7,1592.6,0.00940763]
[1744886964714,27.48688,1592.7,1592.6,0.00940763]
[1744886970821,27.48688,1592.7,1592.3,3.82366]
[1744886970822,1.25631,1592.4,1592.3,1.25636]
[1744886971018,1.25631,1592.4,1592.3,2.93646]
[1744886971221,3.77941,1592.4,1592.3,2.93646]
[1744886978729,3.77941,1592.4,1592.3,1.6801]
[1744886978939,3.77941,1592.4,1592.3,2.93649]
[1744886984543,2.5231,1592.4,1592.3,2.93649]
[1744886984839,3.77941,1592.4,1592.3,2.93649]
[1744886986142,3.14039,1592.6,1592.3,1.6801]
[1744886986342,1.25631,1592.4,1592.3,2.93642]